bitfinex/quotes_BTCUSD_20250730
["timestamp","ask_amount","ask_price","bid_price","bid_amount"]
[1753846098760,23.9538047,118150.0,118140.0,0.97542399]
[1753846098974,23.9538047,118150.0,118140.0,0.97242399]
[1753846099187,23.9538047,118150.0,118140.0,0.97342399]
[1753846099636,23.9538047,118150.0,118140.0,0.97742399]
[1753846101923,23.9538047,118150.0,118140.0,1.24222399]
[1753846102771,23.9538047,118150.0,118140.0,1.23822399]
[1753846102984,23.9538047,118150.0,118140.0,1.23422399]
[1753846103193,23.9538047,118150.0,118140.0,1.24522399]
[1753846106358,23.9538047,118150.0,118140.0,1.24220399]
[1753846106575,23.9765447,118150.0,118140.0,1.24220399]
[1753846106785,23.9538047,118150.0,118140.0,1.24220399]
[1753846108192,23.9538047,118150.0,118140.0,1.24544399]
[1753846110397,23.9538047,118150.0,118140.0,1.24220399]
[1753846113605,23.9538047,118150.0,118140.0,1.24544399]
[1753846114321,23.9538047,118150.0,118140.0,1.24220399]
[1753846114774,23.9538047,118150.0,118140.0,1.24544399]
[1753846116005,23.54040817,118150.0,118140.0,1.24580747]
[1753846116223,23.08245975,118150.0,118140.0,1.24080747]
[1753846116440,22.69151202,118150.0,118140.0,1.24080747]
[1753846116656,22.35904999,118150.0,118140.0,1.46480747]
[1753846116878,22.12188853,118150.0,118140.0,1.33480747]
[1753846117095,21.66394011,118150.0,118140.0,1.34180747]
[1753846117320,21.38564204,118150.0,118140.0,1.34180747]
[1753846117547,21.13741242,118150.0,118140.0,1.24180747]
[1753846117767,21.13741242,118150.0,118140.0,1.24680747]
[1753846118063,20.44714651,118150.0,118140.0,1.24680747]
[1753846118255,20.18693241,118150.0,118140.0,1.47180747]
[1753846118554,20.18693241,118150.0,118140.0,1.46480747]
[1753846118771,20.18693241,118150.0,118140.0,1.24880747]
[1753846119180,20.18693241,118150.0,118140.0,1.45880747]
[1753846119378,20.18693241,118150.0,118140.0,1.24880747]
[1753846119781,20.18693241,118150.0,118140.0,1.35880747]
[1753846127563,19.78534636,118150.0,118140.0,1.35880747]
[1753846129463,19.38344305,118150.0,118140.0,1.35880747]
[1753846129686,19.29613701,118150.0,118140.0,1.35880747]
[1753846132499,18.91017404,118150.0,118140.0,1.35880747]
[1753846132735,18.70945881,118150.0,118140.0,1.35880747]
[1753846133181,18.37175807,118150.0,118140.0,1.35880747]
[1753846134898,18.37175807,118150.0,118140.0,1.35556747]
[1753846137214,18.39519807,118150.0,118140.0,1.24556747]
[1753846137489,18.39820807,118150.0,118140.0,1.24556747]
[1753846137726,18.39820807,118150.0,118140.0,1.22114747]
[1753846138182,18.39820807,118150.0,118140.0,1.33114747]
[1753846139152,18.19453807,118150.0,118140.0,1.33114747]
[1753846141697,18.19453807,118150.0,118140.0,1.32911747]
[1753846144635,18.19453807,118150.0,118140.0,1.33119747]
[1753846144886,17.81083107,118150.0,118140.0,1.35562747]
[1753846145117,17.52211804,118150.0,118140.0,1.35562747]
[1753846145754,17.52211804,118150.0,118140.0,1.55894747]
[1753846146006,17.11568808,118150.0,118140.0,1.55894747]
[1753846146287,16.15152752,118150.0,118140.0,1.55894747]
[1753846146528,15.71668071,118150.0,118140.0,1.56205747]
[1753846146745,15.50453867,118150.0,118140.0,1.56205747]
[1753846146931,15.49606605,118150.0,118140.0,1.56205747]
[1753846147212,15.14345768,118150.0,118140.0,1.56205747]
[1753846147457,14.53041738,118150.0,118140.0,1.56205747]
[1753846147682,14.34944811,118150.0,118140.0,1.56205747]
[1753846147904,14.13783294,118150.0,118140.0,1.56205747]
[1753846148114,13.98009761,118150.0,118140.0,1.56205747]
[1753846148542,13.52698689,118150.0,118140.0,1.56205747]
[1753846148734,13.38460782,118150.0,118140.0,1.56205747]
[1753846149011,13.09600448,118150.0,118140.0,1.56205747]
[1753846149431,12.75023229,118150.0,118140.0,1.56205747]
[1753846149701,12.55903587,118150.0,118140.0,1.56205747]
[1753846149933,12.41546302,118150.0,118140.0,1.56205747]
[1753846150163,12.07740106,118150.0,118140.0,1.56205747]
[1753846150361,11.9536616,118150.0,118140.0,1.56205747]
[1753846150664,11.64961163,118150.0,118140.0,1.56205747]
[1753846150813,11.47033092,118150.0,118140.0,1.56205747]
[1753846151185,11.13813023,118150.0,118140.0,1.56205747]
[1753846151431,10.96707957,118150.0,118140.0,1.42986747]
[1753846151694,11.02402957,118150.0,118140.0,1.35364497]
[1753846151840,11.02402957,118150.0,118140.0,1.37288845]
[1753846152051,10.99352957,118150.0,118140.0,1.37288845]
[1753846152263,10.6014011,118150.0,118140.0,1.59348845]
[1753846152539,10.17085286,118150.0,118140.0,1.61301747]
[1753846152762,10.16784286,118150.0,118140.0,1.63744747]
[1753846153185,10.14440286,118150.0,118140.0,1.63744747]
[1753846153336,9.76249044,118150.0,118140.0,1.63744747]
[1753846153536,9.62929081,118150.0,118140.0,1.63744747]
[1753846153795,9.38829996,118150.0,118140.0,1.63744747]
[1753846154009,9.23653856,118150.0,118140.0,1.63744747]
[1753846156569,9.23864856,118150.0,118140.0,1.63744747]
[1753846157753,9.24165856,118150.0,118140.0,1.63744747]
[1753846158689,8.85487491,118150.0,118140.0,1.63744747]
[1753846158918,8.74128162,118150.0,118140.0,1.63744747]
[1753846163060,8.74128162,118150.0,118140.0,1.58033747]
[1753846163702,8.74128162,118150.0,118140.0,1.68142747]
[1753846163925,8.78159162,118150.0,118140.0,1.68142747]
[1753846164140,8.78465162,118150.0,118140.0,1.68142747]
[1753846164557,8.78159162,118150.0,118140.0,1.68142747]
[1753846164767,8.3817468,118150.0,118140.0,1.68142747]
[1753846165241,8.04691022,118150.0,118140.0,1.68142747]
[1753846165386,7.78233522,118150.0,118140.0,1.68142747]
[1753846165594,7.51254204,118150.0,118140.0,1.68142747]
[1753846165851,7.36339819,118150.0,118140.0,1.68142747]
[1753846166302,6.94823366,118150.0,118140.0,1.68142747]
[1753846166478,6.78014472,118150.0,118140.0,1.68142747]
[1753846166685,6.5906132,118150.0,118140.0,1.68142747]
[1753846167005,6.48860103,118150.0,118140.0,1.68142747]
[1753846167201,6.25132975,118150.0,118140.0,1.68142747]
[1753846167418,5.98503805,118150.0,118140.0,1.68142747]
[1753846167631,4.93724989,118150.0,118140.0,1.68457747]
[1753846167835,4.78661766,118150.0,118140.0,1.68457747]
[1753846167973,4.67832193,118150.0,118140.0,1.68457747]
[1753846168170,4.51013098,118150.0,118140.0,1.68457747]
[1753846168433,4.27676028,118150.0,118140.0,1.68457747]
[1753846168643,4.04318941,118150.0,118140.0,1.67657747]
[1753846168813,3.69667722,118150.0,118140.0,1.67657747]
[1753846169016,2.61577463,118150.0,118140.0,1.70157747]
[1753846169362,2.25299875,118150.0,118140.0,1.70157747]
[1753846169567,2.25299875,118150.0,118140.0,1.69557747]
[1753846169568,2.04400591,118150.0,118140.0,1.69557747]
[1753846169779,1.99672111,118150.0,118140.0,1.69557747]
[1753846170012,1.44416549,118150.0,118140.0,1.88617747]
[1753846170216,1.25129237,118150.0,118140.0,1.88617747]
[1753846170426,1.01354985,118150.0,118140.0,1.88017747]
[1753846170640,0.09613114,118150.0,118140.0,1.88017747]
[1753846170875,0.0316,118190.0,118180.0,0.04283315]
[1753846171107,0.03363,118190.0,118180.0,1.28229923]
[1753846171375,0.00203,118190.0,118180.0,1.2805473]
[1753846171657,0.01773,118190.0,118180.0,1.2805473]
[1753846172083,0.01777836,118190.0,118180.0,1.2805473]
[1753846172295,0.01777836,118190.0,118180.0,1.30549309]
[1753846172895,0.08759836,118190.0,118180.0,1.30549309]
[1753846173310,0.08759836,118190.0,118180.0,1.31349309]
[1753846173959,0.08759836,118190.0,118180.0,1.33891009]
[1753846174154,0.08759836,118190.0,118180.0,1.34491009]
[1753846175563,0.10269836,118190.0,118180.0,1.54819009]
[1753846175780,0.10269836,118190.0,118180.0,1.29819009]
[1753846176385,0.08759836,118190.0,118180.0,1.41819009]
[1753846176774,0.08759836,118190.0,118180.0,1.48531009]
[1753846177177,0.0156,118200.0,118190.0,0.55241354]
[1753846177178,0.0315,118200.0,118190.0,0.55241354]
[1753846177417,0.0315,118200.0,118190.0,0.86573084]
[1753846177625,0.03297,118200.0,118190.0,0.92285084]
[1753846177855,0.06792613,118240.0,118230.0,0.19453519]
[1753846178057,0.06797455,118240.0,118230.0,0.40781249]
[1753846178428,0.06797455,118240.0,118230.0,0.43322649]
[1753846178629,4.842e-05,118240.0,118230.0,0.79067551]
[1753846179362,0.03418842,118240.0,118230.0,0.79067551]
[1753846179974,0.03418842,118240.0,118230.0,0.79905401]
[1753846180183,0.03418842,118240.0,118230.0,0.80305401]
[1753846180591,0.03418842,118240.0,118230.0,0.80705401]
[1753846180795,0.09358842,118240.0,118230.0,0.80705401]
[1753846191641,0.09358842,118240.0,118230.0,0.80701401]
[1753846196458,0.09358842,118240.0,118230.0,1.01025401]
[1753846196683,0.09358842,118240.0,118230.0,1.01346401]
[1753846197090,0.05944842,118240.0,118230.0,1.11619401]
[1753846198154,0.05940024,118240.0,118230.0,1.11619401]
[1753846214585,0.05940024,118240.0,118230.0,1.11219401]
[1753846214789,0.05940024,118240.0,118230.0,1.10819401]
[1753846215000,0.05940024,118240.0,118230.0,1.11419401]
[1753846215222,0.05940024,118240.0,118230.0,1.11919401]
[1753846221066,0.03060024,118240.0,118230.0,1.11919401]
[1753846222874,0.06280024,118240.0,118230.0,1.11919401]
[1753846230740,0.06280024,118240.0,118230.0,1.01646401]
[1753846230970,0.15877024,118240.0,118230.0,1.01646401]
[1753846231179,0.06280024,118240.0,118230.0,1.11735401]
[1753846235926,2.4e-07,118240.0,118230.0,1.11735401]
[1753846238219,2.4e-07,118240.0,118230.0,0.98859401]
[1753846238603,2.4e-07,118240.0,118230.0,1.11739401]
[1753846240602,2.4e-07,118240.0,118230.0,1.18059401]
[1753846241325,2.4e-07,118240.0,118230.0,1.11739401]
[1753846242658,0.03270024,118240.0,118230.0,1.11739401]
[1753846242868,0.06450024,118240.0,118230.0,1.11739401]
[1753846244939,0.06450024,118240.0,118230.0,1.11816401]
[1753846246727,0.06450024,118240.0,118230.0,0.98936401]
[1753846246929,0.06450024,118240.0,118230.0,1.11820401]
[1753846249329,0.06450024,118240.0,118230.0,1.11816401]
[1753846251627,0.06450024,118240.0,118230.0,0.98936401]
[1753846251807,0.06450024,118240.0,118230.0,1.11816401]
[1753846256167,0.06450024,118240.0,118230.0,1.11812401]
[1753846256373,0.16097024,118240.0,118230.0,1.01723401]
[1753846256559,0.06450024,118240.0,118230.0,1.11238401]
[1753846256961,0.03270024,118240.0,118230.0,1.11238401]
[1753846257405,2.4e-07,118240.0,118230.0,1.11238401]
[1753846258337,2.4e-07,118240.0,118230.0,1.14298401]
[1753846259025,2.4e-07,118240.0,118230.0,1.17598401]
[1753846261537,2.4e-07,118240.0,118230.0,1.11238401]
[1753846267359,0.06540024,118240.0,118230.0,1.11238401]
[1753846268049,0.06540024,118240.0,118230.0,0.98362401]
[1753846268193,0.06540024,118240.0,118230.0,1.01402401]
[1753846268194,0.16187024,118240.0,118230.0,1.01402401]
[1753846268810,0.16187024,118240.0,118230.0,1.11018401]
[1753846269049,0.06540024,118240.0,118230.0,1.11216401]
[1753846269399,0.06540024,118240.0,118230.0,0.77216401]
[1753846269400,0.11503676,118240.0,118230.0,0.77216401]
[1753846269609,0.21150676,118240.0,118230.0,0.51089961]
[1753846269808,0.21150676,118240.0,118230.0,0.5024416]
[1753846270013,0.21150676,118240.0,118230.0,0.63965954]
[1753846270434,0.21150676,118240.0,118230.0,0.64811741]
[1753846270644,0.21150676,118240.0,118230.0,0.66003265]
[1753846270849,0.11503676,118240.0,118230.0,0.75019265]
[1753846271005,0.11503676,118240.0,118230.0,0.75419265]
[1753846271205,0.11503676,118240.0,118230.0,0.75819265]
[1753846271622,0.09005534,118240.0,118230.0,0.76017265]
[1753846271836,0.0323,118240.0,118230.0,0.77762167]
[1753846272029,0.09687,118260.0,118250.0,0.19450229]
[1753846272030,0.05003652,118260.0,118250.0,0.19450229]
[1753846272264,0.05052062,118260.0,118250.0,0.50615959]
[1753846272666,0.08322062,118260.0,118250.0,0.48924707]
[1753846272902,0.08322062,118260.0,118250.0,0.53218074]
[1753846273116,0.08322062,118260.0,118250.0,0.54962976]
[1753846273323,0.08322062,118260.0,118250.0,0.54117346]
[1753846273528,0.08322062,118260.0,118250.0,0.54717346]
[1753846273742,0.08322062,118260.0,118250.0,0.55562983]
[1753846273911,0.08322062,118260.0,118250.0,0.53271702]
[1753846274154,0.08322062,118260.0,118250.0,0.53671702]
[1753846274372,0.08322062,118260.0,118250.0,0.35912725]
[1753846274808,0.11602062,118260.0,118250.0,0.35912725]
[1753846275018,0.11602062,118260.0,118250.0,0.36758383]
[1753846275247,0.11602062,118260.0,118250.0,0.3800402]
[1753846275459,0.11602062,118260.0,118250.0,0.56608584]
[1753846275671,0.11602062,118260.0,118250.0,0.56608592]
[1753846275888,0.11602062,118260.0,118250.0,0.55762969]
[1753846276325,0.11602062,118260.0,118250.0,0.56608592]
[1753846277152,0.11602062,118260.0,118250.0,0.55762969]
[1753846277692,0.11602062,118260.0,118250.0,0.54917339]
[1753846278289,0.11602062,118260.0,118250.0,0.54917346]
[1753846278502,0.11602062,118260.0,118250.0,0.57458246]
[1753846278698,0.11602062,118260.0,118250.0,0.58303883]
[1753846278896,0.11602062,118260.0,118250.0,0.56612602]
[1753846279122,0.20852062,118260.0,118250.0,0.27294723]
[1753846279333,0.20852062,118260.0,118250.0,0.2469263]
[1753846283430,0.20852062,118260.0,118250.0,0.2501363]
[1753846283827,0.11602062,118260.0,118250.0,0.3487963]
[1753846285504,0.11602062,118260.0,118250.0,0.51792949]
[1753846285901,0.11602062,118260.0,118250.0,0.3487963]
[1753846289342,0.11602062,118260.0,118250.0,0.52638607]
[1753846289546,0.11602062,118260.0,118250.0,0.52638614]
[1753846289723,0.11602062,118260.0,118250.0,0.51792949]
[1753846290135,0.11602062,118260.0,118250.0,0.3487963]
[1753846290997,0.11602062,118260.0,118250.0,0.51792949]
[1753846291186,0.11602062,118260.0,118250.0,0.52638614]
[1753846291629,0.11602062,118260.0,118250.0,0.51792949]
[1753846291842,0.11602062,118260.0,118250.0,0.3487963]
[1753846293591,0.08322062,118260.0,118250.0,0.53484244]
[1753846293798,0.08322062,118260.0,118250.0,0.52638607]
[1753846293939,0.08322062,118260.0,118250.0,0.53484244]
[1753846294171,0.08322062,118260.0,118250.0,0.52638607]
[1753846294389,0.08322062,118260.0,118250.0,0.53484251]
[1753846294602,0.08322062,118260.0,118250.0,0.53484258]
[1753846295066,0.08322062,118260.0,118250.0,0.54329902]
[1753846295957,0.08322062,118260.0,118250.0,0.53484258]
[1753846296814,0.08322062,118260.0,118250.0,0.52638607]
[1753846297028,0.08322062,118260.0,118250.0,0.52638614]
[1753846297251,0.08322062,118260.0,118250.0,0.53484272]
[1753846298452,0.08322062,118260.0,118250.0,0.54329923]
[1753846299162,0.08322062,118260.0,118250.0,0.52638614]
[1753846299598,0.08322062,118260.0,118250.0,0.51792949]
[1753846300426,0.11582062,118260.0,118250.0,0.3487963]
[1753846302571,0.08322062,118260.0,118250.0,0.51792949]
[1753846302818,0.08322062,118260.0,118250.0,0.52638607]
[1753846303710,0.08322062,118260.0,118250.0,0.51792949]
[1753846303927,0.08322062,118260.0,118250.0,0.49252049]
[1753846304128,0.11322062,118260.0,118250.0,0.49252049]
[1753846305328,0.08322062,118260.0,118250.0,0.50943372]
[1753846306062,0.08322062,118260.0,118250.0,0.50097714]
[1753846306828,0.08322062,118260.0,118250.0,0.50943372]
[1753846307078,0.08322062,118260.0,118250.0,0.50097714]
[1753846308572,0.08322062,118260.0,118250.0,0.49252049]
[1753846311496,0.08322062,118260.0,118250.0,0.50097714]
[1753846311993,0.08322062,118260.0,118250.0,0.49252049]
[1753846318795,0.08322062,118260.0,118250.0,0.3233873]
[1753846323621,0.08322062,118260.0,118250.0,0.49252049]
[1753846324733,0.08322062,118260.0,118250.0,0.3233873]
[1753846328647,0.08322062,118260.0,118250.0,0.49252049]
[1753846333745,0.05052062,118260.0,118250.0,0.52502049]
[1753846333960,0.05052062,118260.0,118250.0,0.58158959]
[1753846335414,0.05052062,118260.0,118250.0,0.60700059]
[1753846344632,0.05052062,118260.0,118250.0,0.62444961]
[1753846346789,0.05052062,118260.0,118250.0,0.82764961]
[1753846351597,0.05052062,118260.0,118250.0,0.62444961]
[1753846356564,0.05052062,118260.0,118250.0,0.82764961]
[1753846356981,0.05052062,118260.0,118250.0,0.79644961]
[1753846357974,0.05052062,118260.0,118250.0,0.79644969]
[1753846358174,0.05052062,118260.0,118250.0,0.77240584]
[1753846361053,0.05052062,118260.0,118250.0,0.80300584]
[1753846361268,0.05052062,118260.0,118250.0,0.59980584]
[1753846364004,0.0008841,118260.0,118250.0,0.63070584]
[1753846364235,0.05052062,118260.0,118250.0,0.63070584]
[1753846364572,0.05052062,118260.0,118250.0,0.97070584]
[1753846365469,0.05052062,118260.0,118250.0,0.96670584]
[1753846365883,0.05052062,118260.0,118250.0,0.97070584]
[1753846366394,0.05052062,118260.0,118250.0,0.96270584]
[1753846366608,0.05052062,118260.0,118250.0,0.96770584]
[1753846366911,0.05052062,118260.0,118250.0,0.97370584]
[1753846367137,0.0008841,118260.0,118250.0,0.97370584]
[1753846367478,0.05052062,118260.0,118250.0,0.97370584]
[1753846367895,0.0008841,118260.0,118250.0,0.97370584]
[1753846368291,0.05052062,118260.0,118250.0,0.97370584]
[1753846368519,0.0008841,118260.0,118250.0,0.97370584]
[1753846368698,0.05052062,118260.0,118250.0,0.97370584]
[1753846369077,0.0008841,118260.0,118250.0,0.97370584]
[1753846369273,0.05052062,118260.0,118250.0,0.97370584]
[1753846369480,0.0008841,118260.0,118250.0,0.97370584]
[1753846369865,0.05052062,118260.0,118250.0,0.97370584]
[1753846370090,0.0008841,118260.0,118250.0,0.97370584]
[1753846370297,0.05052062,118260.0,118250.0,0.97370584]
[1753846370721,0.0008841,118260.0,118250.0,0.97370584]
[1753846372209,0.05052062,118260.0,118250.0,0.97370584]
[1753846374951,0.05052062,118260.0,118250.0,0.94280584]
[1753846375168,0.05052062,118260.0,118250.0,0.91220584]
[1753846375404,0.0008841,118260.0,118250.0,0.91220584]
[1753846375604,0.05052062,118260.0,118250.0,0.91220584]
[1753846375810,0.08092062,118260.0,118250.0,0.64747051]
[1753846376025,0.20363062,118260.0,118250.0,0.43573458]
[1753846376236,0.20363062,118260.0,118250.0,0.44419088]
[1753846376461,0.20363062,118260.0,118250.0,0.46110326]
[1753846376665,0.20363062,118260.0,118250.0,0.45610326]
[1753846376884,0.20363062,118260.0,118250.0,0.40782149]
[1753846377102,0.20363062,118260.0,118250.0,0.42873444]
[1753846377319,0.20363062,118260.0,118250.0,0.44119081]
[1753846377534,0.20363062,118260.0,118250.0,0.44964711]
[1753846377970,0.20363062,118260.0,118250.0,0.45810326]
[1753846378188,0.20363062,118260.0,118250.0,0.44119081]
[1753846378403,0.20363062,118260.0,118250.0,0.43273444]
[1753846378605,0.20363062,118260.0,118250.0,0.44119081]
[1753846378818,0.20363062,118260.0,118250.0,0.44964711]
[1753846379715,0.20363062,118260.0,118250.0,0.45810334]
[1753846380135,0.20363062,118260.0,118250.0,0.43273444]
[1753846380352,0.20363062,118260.0,118250.0,0.44119074]
[1753846380554,0.20363062,118260.0,118250.0,0.44964697]
[1753846380765,0.20363062,118260.0,118250.0,0.45288697]
[1753846381767,0.11242062,118260.0,118250.0,0.55602312]
[1753846381973,0.08092062,118260.0,118250.0,0.55602312]
[1753846382199,0.08092062,118260.0,118250.0,0.55817312]
[1753846384034,0.08092062,118260.0,118250.0,0.54971697]
[1753846384499,0.08092062,118260.0,118250.0,0.55817312]
[1753846385625,0.08092062,118260.0,118250.0,0.54126074]
[1753846385842,0.08092062,118260.0,118250.0,0.54971689]
[1753846388242,0.08092062,118260.0,118250.0,0.55817312]
[1753846388461,0.08092062,118260.0,118250.0,0.54971697]
[1753846388719,0.08092062,118260.0,118250.0,0.55817312]
[1753846389378,0.08092062,118260.0,118250.0,0.54971697]
[1753846390154,0.08092062,118260.0,118250.0,0.55817312]
[1753846391006,0.08092062,118260.0,118250.0,0.54971697]
[1753846391217,0.08092062,118260.0,118250.0,0.55817312]
[1753846391904,0.08092062,118260.0,118250.0,0.54971697]
[1753846392105,0.08092062,118260.0,118250.0,0.55817312]
[1753846392574,0.08092062,118260.0,118250.0,0.54126074]
[1753846392782,0.08092062,118260.0,118250.0,0.54971697]
[1753846393370,0.08092062,118260.0,118250.0,0.524348]
[1753846393616,0.08092062,118260.0,118250.0,0.53280444]
[1753846394034,0.08092062,118260.0,118250.0,0.54126081]
[1753846394281,0.08092062,118260.0,118250.0,0.53280444]
[1753846394682,0.08092062,118260.0,118250.0,0.54971711]
[1753846394927,0.08092062,118260.0,118250.0,0.53280444]
[1753846395686,0.08092062,118260.0,118250.0,0.54126081]
[1753846396126,0.17015062,118260.0,118250.0,0.1211283]
[1753846396334,0.20185062,118260.0,118250.0,0.2466883]
[1753846399753,0.20185062,118260.0,118250.0,0.2497583]
[1753846400204,0.20185062,118260.0,118250.0,0.3366983]
[1753846400378,0.11262062,118260.0,118250.0,0.3366983]
[1753846402448,0.11262062,118260.0,118250.0,0.3366583]
[1753846402645,0.20053062,118260.0,118250.0,0.3366583]
[1753846404682,0.11262062,118260.0,118250.0,0.3366583]
[1753846405271,0.11262062,118260.0,118250.0,0.3386483]
[1753846406555,0.05052062,118260.0,118250.0,0.3693483]
[1753846406818,0.05052062,118260.0,118250.0,0.5958506]
[1753846407231,0.05052062,118260.0,118250.0,0.60430675]
[1753846407675,0.05052062,118260.0,118250.0,0.5958506]
[1753846407895,0.05052062,118260.0,118250.0,0.58739437]
[1753846408116,0.05052062,118260.0,118250.0,0.5553943]
[1753846408309,0.05052062,118260.0,118250.0,0.55539444]
[1753846408667,0.05052062,118260.0,118250.0,0.56385081]
[1753846409279,0.05052062,118260.0,118250.0,0.546938]
[1753846410994,0.05052062,118260.0,118250.0,0.53848149]
[1753846411190,0.05052062,118260.0,118250.0,0.55539458]
[1753846411407,0.05052062,118260.0,118250.0,0.57230725]
[1753846411621,0.05052062,118260.0,118250.0,0.5807634]
[1753846411844,0.05052062,118260.0,118250.0,0.58076348]
[1753846412741,0.05052062,118260.0,118250.0,0.57230725]
[1753846412945,0.05052062,118260.0,118250.0,0.56385102]
[1753846413376,0.05052062,118260.0,118250.0,0.52469458]
[1753846413952,0.05052062,118260.0,118250.0,0.53315102]
[1753846415214,0.05052062,118260.0,118250.0,0.52469458]
[1753846416231,0.05052062,118260.0,118250.0,0.51623807]
[1753846416867,0.05052062,118260.0,118250.0,0.50778149]
[1753846417101,0.05052062,118260.0,118250.0,0.37902149]
[1753846417318,0.08282062,118260.0,118250.0,0.3386483]
[1753846417539,0.20093062,118260.0,118250.0,0.2466483]
[1753846418146,0.20093062,118260.0,118250.0,0.2497183]
[1753846418392,0.11302062,118260.0,118250.0,0.3346483]
[1753846418617,0.08282062,118260.0,118250.0,0.49978149]
[1753846418821,0.08282062,118260.0,118250.0,0.50278149]
[1753846419031,0.08282062,118260.0,118250.0,0.50578149]
[1753846419660,0.05052062,118260.0,118250.0,0.52269458]
[1753846419913,0.05052062,118260.0,118250.0,0.52269465]
[1753846420123,0.05052062,118260.0,118250.0,0.56445109]
[1753846420529,0.05052062,118260.0,118250.0,0.55599465]
[1753846421372,0.05052062,118260.0,118250.0,0.54753814]
[1753846421581,0.05052062,118260.0,118250.0,0.52269472]
[1753846421793,0.05052062,118260.0,118250.0,0.51423814]
[1753846421999,0.05052062,118260.0,118250.0,0.52269472]
[1753846422224,0.05052062,118260.0,118250.0,0.51423814]
[1753846423301,0.08212062,118260.0,118250.0,0.51423814]
[1753846423507,0.08212062,118260.0,118250.0,0.52269472]
[1753846423944,0.08212062,118260.0,118250.0,0.51423814]
[1753846424560,0.08212062,118260.0,118250.0,0.51423807]
[1753846424735,0.08212062,118260.0,118250.0,0.51423814]
[1753846425444,0.08212062,118260.0,118250.0,0.50578149]
[1753846425781,0.08212062,118260.0,118250.0,0.3366483]
[1753846428615,0.08212062,118260.0,118250.0,0.34510495]
[1753846429099,0.08212062,118260.0,118250.0,0.51423814]
[1753846429277,0.08212062,118260.0,118250.0,0.50578149]
[1753846429714,0.08212062,118260.0,118250.0,0.3366483]
[1753846432146,0.08212062,118260.0,118250.0,0.34510495]
[1753846432632,0.08212062,118260.0,118250.0,0.50578149]
[1753846432801,0.08212062,118260.0,118250.0,0.3366483]
[1753846433860,0.08212062,118260.0,118250.0,0.34510495]
[1753846434516,0.08212062,118260.0,118250.0,0.3366483]
[1753846435158,0.08212062,118260.0,118250.0,0.34510495]
[1753846435367,0.08212062,118260.0,118250.0,0.3366483]
[1753846436738,0.09057599,118260.0,118250.0,0.3366483]
[1753846436946,0.08212062,118260.0,118250.0,0.3366483]
[1753846437542,0.09057592,118260.0,118250.0,0.3366483]
[1753846437845,0.08212062,118260.0,118250.0,0.3366483]
[1753846438246,0.09057592,118260.0,118250.0,0.3366483]
[1753846438445,0.08212062,118260.0,118250.0,0.3366483]
[1753846438837,0.09057592,118260.0,118250.0,0.3366483]
[1753846440075,0.09057592,118260.0,118250.0,0.2078883]
[1753846440310,0.23070288,118260.0,118250.0,0.2446483]
[1753846440520,0.21379136,118260.0,118250.0,0.2446483]
[1753846440948,0.08212062,118260.0,118250.0,0.3332383]
[1753846441155,0.08212062,118260.0,118250.0,0.37361149]
[1753846441396,0.09137599,118260.0,118250.0,0.3352383]
[1753846441616,0.09137599,118260.0,118250.0,0.50137149]
[1753846441617,0.08292062,118260.0,118250.0,0.50137149]
[1753846441821,0.05052062,118260.0,118250.0,0.50782807]
[1753846442114,0.05052062,118260.0,118250.0,0.55118451]
[1753846442309,0.05052062,118260.0,118250.0,0.59194088]
[1753846442494,0.05052062,118260.0,118250.0,0.60039703]
[1753846442708,0.05052062,118260.0,118250.0,0.59194088]
[1753846442906,0.05052062,118260.0,118250.0,0.60039703]
[1753846443283,0.05052062,118260.0,118250.0,0.58548451]
[1753846443491,0.05052062,118260.0,118250.0,0.59394074]
[1753846444318,0.05052062,118260.0,118250.0,0.58548451]
[1753846444931,0.05052062,118260.0,118250.0,0.59394088]
[1753846445930,0.05052062,118260.0,118250.0,0.60239703]
[1753846446768,0.05052062,118260.0,118250.0,0.61085326]
[1753846447035,0.05052062,118260.0,118250.0,0.60239711]
[1753846447244,0.05052062,118260.0,118250.0,0.60239718]
[1753846447456,0.05052062,118260.0,118250.0,0.58548451]
[1753846447862,0.05052062,118260.0,118250.0,0.57702814]
[1753846448067,0.05052062,118260.0,118250.0,0.55318465]
[1753846449701,0.05052062,118260.0,118250.0,0.56164109]
[1753846449953,0.05052062,118260.0,118250.0,0.55318465]
[1753846451489,0.05052062,118260.0,118250.0,0.56164109]
[1753846452098,0.05052062,118260.0,118250.0,0.55318465]
[1753846452551,0.05052062,118260.0,118250.0,0.55318472]
[1753846452756,0.05052062,118260.0,118250.0,0.54472814]
[1753846453328,0.08132062,118260.0,118250.0,0.3342383]
[1753846453688,0.11262062,118260.0,118250.0,0.3322483]
[1753846453896,0.08977599,118260.0,118250.0,0.3322483]
[1753846454088,0.08132062,118260.0,118250.0,0.3342383]
[1753846454702,0.08977606,118260.0,118250.0,0.3342383]
[1753846455145,0.08132062,118260.0,118250.0,0.3342383]
[1753846456111,0.08977599,118260.0,118250.0,0.3342383]
[1753846456632,0.08132062,118260.0,118250.0,0.3342383]
[1753846456785,0.08977592,118260.0,118250.0,0.3342383]
[1753846457386,0.09823129,118260.0,118250.0,0.3342383]
[1753846457549,0.08132062,118260.0,118250.0,0.3342383]
[1753846458690,0.05052062,118260.0,118250.0,0.50337149]
[1753846458897,0.05052062,118260.0,118250.0,0.511828]
[1753846459152,0.05052062,118260.0,118250.0,0.51182807]
[1753846460085,0.05052062,118260.0,118250.0,0.34269495]
[1753846460319,0.05897599,118260.0,118250.0,0.3342383]
[1753846461217,0.09057599,118260.0,118250.0,0.3342383]
[1753846461420,0.09903143,118260.0,118250.0,0.3342383]
[1753846461634,0.10748708,118260.0,118250.0,0.3342383]
[1753846462108,0.13898708,118260.0,118250.0,0.3322483]
[1753846462954,0.43022096,118260.0,118250.0,0.2426083]
[1753846463188,0.43022096,118260.0,118250.0,0.2171973]
[1753846463612,0.17117627,118260.0,118250.0,0.3101073]
[1753846463820,0.15748787,118260.0,118250.0,0.3121073]
[1753846464035,0.08212062,118260.0,118250.0,0.3121073]
[1753846464382,0.05052062,118260.0,118250.0,0.1833873]
[1753846464383,0.06743136,118260.0,118250.0,0.3121073]
[1753846464591,0.05897592,118260.0,118250.0,0.3121073]
[1753846464790,0.06743143,118260.0,118250.0,0.3448073]
[1753846465199,0.06743136,118260.0,118250.0,0.3448073]
[1753846465398,0.07588694,118260.0,118250.0,0.3448073]
[1753846466139,0.06743136,118260.0,118250.0,0.3448073]
[1753846466367,0.07588687,118260.0,118250.0,0.3448073]
[1753846468768,0.08434245,118260.0,118250.0,0.3448073]
[1753846468991,0.05897592,118260.0,118250.0,0.3702213]
[1753846469198,0.05897592,118260.0,118250.0,0.37867795]
[1753846469591,0.05897592,118260.0,118250.0,0.3702213]
[1753846469978,0.05052062,118260.0,118250.0,0.37867795]
[1753846470187,0.05897599,118260.0,118250.0,0.3702213]
[1753846470611,0.05897592,118260.0,118250.0,0.3702213]
[1753846470826,0.05897592,118260.0,118250.0,0.37867795]
[1753846471460,0.05897592,118260.0,118250.0,0.3702213]
[1753846471667,0.05897592,118260.0,118250.0,0.37867795]
[1753846472498,0.05052062,118260.0,118250.0,0.54781107]
[1753846472673,0.05897599,118260.0,118250.0,0.53935449]
[1753846473071,0.05897592,118260.0,118250.0,0.54781114]
[1753846473705,0.05897592,118260.0,118250.0,0.3702213]